bitfinex/quotes_SOLUSD_20220130
["timestamp","ask_amount","ask_price","bid_price","bid_amount"]
[1643559264233,1.44721123,95.683,95.64,6.0]
[1643559264234,24.2173,95.685,95.64,6.0]
[1643559264440,24.2173,95.685,95.64,19.45]
[1643559264636,24.2173,95.685,95.64,13.45]
[1643559267764,0.25,95.684,95.64,13.45]
[1643559268764,1.44721123,95.688,95.64,13.45]
[1643559268965,1.44721123,95.688,95.65,6.0]
[1643559269366,1.44721123,95.692,95.65,6.0]
[1643559269566,1.44721123,95.695,95.65,6.0]
[1643559269767,1.44721123,95.697,95.65,21.683]
[1643559269971,1.44721123,95.695,95.65,6.0]
[1643559270171,1.44721123,95.715,95.651,25.1831]
[1643559270467,1.44721123,95.727,95.66,15.07]
[1643559270667,1.44721123,95.73,95.662,104.9]
[1643559270871,1.44721123,95.73,95.67,6.0]
[1643559271069,1.44721123,95.742,95.68,15.07]
[1643559271268,1.44721123,95.742,95.681,105.15]
[1643559271472,1.44721123,95.749,95.682,22.9806]
[1643559271673,1.44721123,95.767,95.683,6.0]
[1643559271870,1.44721123,95.77,95.692,6.0]
[1643559272071,1.44721123,95.77,95.7,15.07]
[1643559272269,1.44721123,95.782,95.701,0.25]
[1643559272473,46.57159531,95.784,95.71,6.0]
[1643559272670,46.57159531,95.784,95.711,24.9865]
[1643559272869,46.57159531,95.784,95.711,25.2365]
[1643559273970,15.672,95.78,95.711,25.2365]
[1643559274171,46.57159531,95.784,95.711,25.2365]
[1643559274373,46.57159531,95.784,95.721,6.0]
[1643559274772,46.57159531,95.784,95.722,0.25]
[1643559274976,46.57159531,95.784,95.73,15.67]
[1643559275373,0.25,95.783,95.731,0.25]
[1643559275573,0.25,95.783,95.73,15.67]
[1643559275772,0.25,95.783,95.731,0.25]
[1643559276173,22.601,95.799,95.75,15.667]
[1643559276373,0.25,95.798,95.75,15.667]
[1643559276974,45.19257825,95.798,95.75,15.667]
[1643559277373,45.19257825,95.798,95.76,15.666]
[1643559277976,45.19257825,95.798,95.73,52.221]
[1643559278275,45.19257825,95.798,95.722,23.936]
[1643559278476,15.67,95.79,95.723,0.25]
[1643559278676,15.67,95.79,95.69,15.07]
[1643559278979,15.07,95.78,95.664,23.2048]
[1643559279176,52.278,95.77,95.63,52.272]
[1643559279378,15.07,95.76,95.63,52.272]
[1643559279577,15.686,95.75,95.64,15.685]
[1643559279876,30.756,95.75,95.631,23.6089]
[1643559280083,23.319,95.749,95.631,23.6089]
[1643559280277,26.27569142,95.749,95.631,23.6089]
[1643559280576,107.85669142,95.748,95.65,15.683]
[1643559280777,107.85669142,95.748,95.641,6.0]
[1643559281079,2.95669142,95.747,95.641,6.0]
[1643559281276,2.95669142,95.747,95.642,0.25]
[1643559281679,2.95669142,95.747,95.65,15.683]
[1643559281878,2.95669142,95.747,95.651,0.25]
[1643559282084,2.95669142,95.747,95.642,0.25]
[1643559282686,2.95669142,95.747,95.641,6.0]
[1643559283084,36.6467615,95.729,95.641,6.0]
[1643559283283,104.9,95.728,95.641,6.0]
[1643559283489,107.85669142,95.728,95.641,6.0]
[1643559283685,2.95669142,95.727,95.641,6.0]
[1643559283885,2.95669142,95.727,95.642,0.25]
[1643559284286,2.95669142,95.727,95.641,6.0]
[1643559285686,2.95669142,95.727,95.642,0.25]
[1643559286289,0.25,95.726,95.642,0.25]
[1643559286587,0.25,95.726,95.641,6.0]
[1643559288688,0.25,95.726,95.642,0.25]
[1643559288887,0.25,95.728,95.65,6.0]
[1643559289790,105.15,95.728,95.65,6.0]
[1643559291091,0.25,95.728,95.65,6.0]
[1643559291292,0.25,95.728,95.651,23.9538]
[1643559291691,0.25,95.728,95.661,6.0]
[1643559291892,36.6467615,95.729,95.661,6.0]
[1643559292394,36.6467615,95.729,95.651,23.9538]
[1643559292999,104.9,95.728,95.651,23.9538]
[1643559293198,105.15,95.728,95.651,23.9538]
[1643559294800,2.95669142,95.727,95.59,15.07]
[1643559295000,104.9,95.719,95.605,47.5053]
[1643559295199,104.9,95.719,95.605,47.7553]
[1643559295504,104.9,95.709,95.605,47.7553]
[1643559295804,24.7551,95.708,95.605,47.7553]
[1643559296005,27.71179142,95.708,95.605,47.7553]
[1643559296205,107.85669142,95.707,95.605,47.7553]
[1643559296605,2.95669142,95.706,95.605,47.7553]
[1643559297909,2.95669142,95.706,95.605,47.5053]
[1643559298214,104.9,95.707,95.605,47.5053]
[1643559298607,107.85669142,95.707,95.605,47.5053]
[1643559298906,0.25,95.706,95.605,47.5053]
[1643559299107,0.25,95.706,95.61,15.69]
[1643559299308,2.95669142,95.705,95.61,15.69]
[1643559299506,15.07,95.69,95.605,47.5053]
[1643559299707,104.9,95.688,95.606,0.25]
[1643559302731,104.9,95.688,95.601,0.25]
[1643559303131,0.25,95.687,95.601,0.25]
[1643559304132,0.25,95.687,95.601,23.7587]
[1643559306335,0.25,95.687,95.602,0.25]
[1643559306536,0.25,95.687,95.601,23.7587]
[1643559306937,0.25,95.687,95.602,0.25]
[1643559307738,1.69721123,95.687,95.602,0.25]
[1643559307938,1.44721123,95.686,95.602,0.25]
[1643559308138,1.44721123,95.687,95.602,0.25]
[1643559309340,0.25,95.686,95.602,0.25]
[1643559309939,1.44721123,95.687,95.602,0.25]
[1643559310140,35.87014663,95.689,95.611,6.0]
[1643559310341,35.87014663,95.689,95.612,0.25]
[1643559310939,35.87014663,95.689,95.62,15.688]
[1643559311342,35.87014663,95.689,95.621,0.25]
[1643559311540,35.87014663,95.689,95.621,23.2197]
[1643559312142,0.25,95.688,95.621,23.2197]
[1643559313141,15.684,95.7,95.631,6.0]
[1643559313341,15.684,95.7,95.632,0.25]
[1643559313544,1.44721123,95.715,95.632,6.25]
[1643559313748,1.44721123,95.715,95.633,24.8296]
[1643559313941,36.47921185,95.714,95.633,24.8296]
[1643559314141,36.47921185,95.714,95.643,6.0]
[1643559314342,0.25,95.713,95.644,0.25]
[1643559315143,15.682,95.71,95.66,15.682]
[1643559315847,15.682,95.71,95.644,0.25]
[1643559316644,15.682,95.71,95.65,15.683]
[1643559316949,15.682,95.71,95.651,0.25]
[1643559317355,0.25,95.709,95.651,0.25]
[1643559317548,0.25,95.709,95.65,15.683]
[1643559317746,0.25,95.709,95.644,24.6694]
[1643559317945,0.25,95.709,95.645,0.25]
[1643559318545,0.25,95.709,95.611,2.28882158]
[1643559318546,0.25,95.709,95.612,24.7672]
[1643559318749,104.9,95.707,95.612,24.7672]
[1643559318946,1.44721123,95.704,95.62,15.688]
[1643559319148,104.9,95.707,95.612,24.7672]
[1643559319149,15.69,95.7,95.612,24.7672]
[1643559319348,106.34721123,95.699,95.612,24.7672]
[1643559319554,1.44721123,95.696,95.582,1.43381001]
[1643559319748,1.44721123,95.696,95.555,107.78077678]
[1643559319749,1.44721123,95.687,95.573,1.43381001]
[1643559319948,1.44721123,95.685,95.59,15.693]
[1643559320149,47.13232998,95.684,95.59,15.693]
[1643559320549,2.95669142,95.683,95.59,15.693]
[1643559320750,4.40390265,95.683,95.59,15.693]
[1643559321352,4.40390265,95.682,95.59,15.693]
[1643559321552,15.07,95.68,95.59,15.693]
[1643559321752,15.693,95.66,95.6,6.0]
[1643559322953,0.25,95.659,95.6,6.0]
[1643559323153,15.693,95.65,95.6,6.0]
[1643559323353,36.03234125,95.649,95.6,6.0]
[1643559323553,36.03234125,95.649,95.6,21.692]
[1643559323754,36.03234125,95.649,95.6,15.692]
[1643559323957,36.03234125,95.649,95.581,6.0]
[1643559324253,15.694,95.64,95.582,0.25]
[1643559325156,15.694,95.64,95.59,6.0]
[1643559325353,15.694,95.64,95.591,0.25]
[1643559326388,15.694,95.64,95.582,0.25]
[1643559326585,0.25,95.639,95.582,0.25]
[1643559327383,0.25,95.639,95.59,6.0]
[1643559330097,15.695,95.63,95.571,24.2572]
[1643559330289,15.695,95.63,95.557,1.43381001]
[1643559330489,15.695,95.63,95.544,1.43381001]
[1643559330490,24.485,95.63,95.544,1.43381001]
[1643559330690,24.485,95.63,95.54,6.0]
[1643559330890,24.485,95.63,95.541,6.0]
[1643559331090,24.485,95.63,95.547,6.0]
[1643559331289,104.9,95.629,95.548,0.25]
[1643559331492,41.41711235,95.609,95.548,0.25]
[1643559331694,41.41711235,95.609,95.548,6.0]
[1643559331890,41.41711235,95.609,95.547,6.0]
[1643559332492,15.701,95.6,95.547,6.0]
[1643559333092,15.701,95.6,95.548,0.25]
[1643559333291,0.25,95.599,95.55,6.0]
[1643559333793,0.25,95.599,95.551,0.25]
[1643559334691,41.41711235,95.609,95.551,0.25]
[1643559335693,41.41711235,95.609,95.56,15.698]
[1643559335893,41.41711235,95.609,95.561,0.25]
[1643559336092,41.41711235,95.609,95.57,6.0]
[1643559336495,41.41711235,95.609,95.561,0.25]
[1643559337294,41.41711235,95.609,95.55,15.699]
[1643559337295,41.41711235,95.609,95.551,0.25]
[1643559338096,41.41711235,95.609,95.553,6.0]
[1643559338296,41.41711235,95.609,95.554,0.25]
[1643559338496,15.07,95.64,95.554,0.25]
[1643559338697,15.07,95.64,95.56,15.698]
[1643559338904,15.07,95.64,95.561,0.25]
[1643559339097,52.321,95.65,95.561,0.25]
[1643559339299,24.8437,95.649,95.565,6.0]
[1643559339502,141.74531933,95.647,95.561,0.25]
[1643559339699,36.84531933,95.647,95.561,0.25]
[1643559339999,15.696,95.63,95.57,15.696]
[1643559340199,15.696,95.63,95.571,23.4244]
[1643559342302,104.9,95.642,95.571,23.4244]
[1643559342503,15.701,95.62,95.571,23.4244]
[1643559342902,0.25,95.619,95.571,23.4244]
[1643559343305,22.668,95.641,95.571,23.4244]
[1643559343306,0.25,95.64,95.571,23.4244]
[1643559343509,15.697,95.62,95.571,23.4244]
[1643559344505,15.697,95.62,95.54,52.321]
[1643559344709,15.697,95.62,95.561,0.25]
[1643559345510,15.697,95.62,95.562,6.0]
[1643559345909,15.697,95.62,95.563,0.25]
[1643559346708,15.697,95.62,95.552,23.9804]
[1643559347714,37.03876678,95.618,95.552,23.9804]
[1643559347912,15.704,95.6,95.552,23.9804]
[1643559348318,15.704,95.6,95.531,22.7639]
[1643559348519,15.704,95.6,95.532,23.5878]
[1643559349122,15.704,95.6,95.533,0.25]
[1643559349320,15.704,95.59,95.533,0.25]
[1643559349521,40.93076452,95.589,95.533,0.25]
[1643559349721,41.18076452,95.589,95.533,0.25]
[1643559349923,41.18076452,95.589,95.54,15.701]
[1643559350120,41.18076452,95.589,95.533,0.25]
[1643559352022,41.18076452,95.589,95.54,15.701]
[1643559353836,40.68076452,95.589,95.541,0.25]
[1643559354036,40.68076452,95.589,95.533,0.25]
[1643559354840,15.703,95.58,95.533,0.25]
[1643559357044,40.43076452,95.589,95.533,0.25]
[1643559357245,0.25,95.579,95.533,0.25]
[1643559357442,40.43076452,95.589,95.533,0.25]
[1643559357645,0.25,95.588,95.533,0.25]
[1643559358041,15.704,95.58,95.533,0.25]
[1643559362450,0.25,95.579,95.533,0.25]
[1643559362658,37.63388408,95.569,95.533,0.25]
[1643559366054,0.25,95.568,95.532,23.5878]
[1643559366955,0.25,95.568,95.542,6.0]
[1643559367156,0.25,95.568,95.533,0.25]
[1643559369861,104.9,95.608,95.533,0.25]
[1643559370066,15.07,95.61,95.533,0.25]
[1643559370263,1.44721123,95.622,95.533,0.25]
[1643559370467,1.44721123,95.637,95.56,15.698]
[1643559370663,1.44721123,95.637,95.561,24.333]
[1643559370864,33.59165225,95.636,95.57,6.0]
[1643559371063,33.59165225,95.636,95.571,6.0]
[1643559371266,33.59165225,95.636,95.572,0.25]
[1643559372064,33.59165225,95.636,95.58,15.694]
[1643559372262,33.59165225,95.636,95.581,0.25]
[1643559372466,33.59165225,95.636,95.562,23.2452]
[1643559372864,33.59165225,95.636,95.563,0.25]
[1643559373068,15.697,95.63,95.562,23.2452]
[1643559373465,0.25,95.635,95.562,23.2452]
[1643559373664,33.59165225,95.636,95.562,23.2452]
[1643559374465,15.698,95.63,95.563,0.25]
[1643559375265,1.44721123,95.65,95.563,0.25]
[1643559375668,1.44721123,95.651,95.563,0.25]
[1643559375866,15.696,95.64,95.57,15.696]
[1643559376266,38.59172984,95.639,95.571,0.25]
[1643559377371,0.25,95.638,95.571,0.25]
[1643559377567,0.25,95.638,95.58,21.695]
[1643559377766,0.25,95.638,95.58,15.695]
[1643559378467,0.25,95.638,95.581,24.2024]
[1643559379091,15.697,95.63,95.581,24.2024]
[1643559379493,15.697,95.63,95.563,0.25]
[1643559379690,15.697,95.63,95.563,24.51]
[1643559381191,15.697,95.63,95.573,6.0]
[1643559381392,0.25,95.629,95.574,0.25]
[1643559381991,0.25,95.629,95.574,22.7891]
[1643559382392,23.9524,95.638,95.584,6.0]
[1643559382591,0.25,95.637,95.584,6.0]
[1643559383994,38.59172984,95.639,95.59,6.0]
[1643559384193,15.697,95.63,95.574,22.7891]
[1643559385294,15.697,95.63,95.574,0.25]
[1643559385698,15.697,95.63,95.563,0.25]
[1643559386898,15.697,95.63,95.561,23.6378]
[1643559387499,15.697,95.63,95.561,23.3878]
[1643559388100,15.699,95.62,95.561,23.3878]
[1643559388302,35.0316109,95.619,95.561,23.3878]
[1643559390306,1.44721123,95.643,95.57,15.697]
[1643559390502,15.07,95.65,95.57,15.697]
[1643559390704,15.07,95.65,95.571,0.25]
[1643559390904,15.07,95.65,95.572,6.0]
[1643559391305,37.91115452,95.649,95.573,23.8081]
[1643559391501,104.9,95.648,95.58,15.695]
[1643559391701,104.9,95.648,95.573,23.5581]
[1643559391902,1.44721123,95.647,95.573,23.5581]
[1643559392104,104.9,95.648,95.573,23.5581]
[1643559392302,1.44721123,95.646,95.573,23.5581]
[1643559392503,15.696,95.64,95.574,0.25]
[1643559394304,15.696,95.64,95.56,6.0]
[1643559394503,15.696,95.64,95.561,24.255]
[1643559394903,15.696,95.64,95.562,0.25]
[1643559395904,15.696,95.64,95.57,15.697]
[1643559396305,15.696,95.64,95.571,0.25]
[1643559397906,0.25,95.639,95.571,0.25]
[1643559398106,0.25,95.639,95.57,15.697]
[1643559398306,0.25,95.639,95.561,24.255]
[1643559398307,15.697,95.63,95.561,24.255]
[1643559398508,46.21944241,95.629,95.561,24.255]
[1643559399707,46.21944241,95.629,95.562,0.25]
[1643559403315,0.25,95.628,95.562,0.25]
[1643559405416,15.699,95.62,95.561,24.255]
[1643559406420,15.699,95.62,95.562,0.25]
[1643559407221,0.25,95.619,95.562,0.25]
[1643559413347,23.5115,95.628,95.561,24.255]
[1643559415046,15.699,95.62,95.561,24.255]
[1643559415247,23.5115,95.628,95.561,24.255]
[1643559415446,23.5115,95.628,95.57,15.697]
[1643559415647,23.5115,95.628,95.571,6.0]
[1643559416649,23.5115,95.628,95.561,24.255]
[1643559417047,0.25,95.627,95.57,15.697]
[1643559421352,0.25,95.627,95.571,0.25]
[1643559422152,0.25,95.627,95.57,15.697]
[1643559422353,0.25,95.627,95.561,24.255]
[1643559422554,0.25,95.627,95.571,6.0]
[1643559422954,0.25,95.627,95.56,15.698]
[1643559422955,15.699,95.62,95.572,23.2615]
[1643559425655,23.5115,95.628,95.572,23.2615]
[1643559427061,0.25,95.627,95.572,23.2615]
[1643559427658,15.699,95.62,95.572,23.2615]
[1643559430662,0.25,95.619,95.572,23.2615]
[1643559431765,0.25,95.627,95.572,23.2615]
[1643559434067,15.698,95.62,95.572,23.2615]
[1643559437269,0.25,95.619,95.572,23.2615]
[1643559445812,23.837,95.627,95.573,0.25]
[1643559446613,1.44721123,95.634,95.573,0.25]
[1643559446814,1.44721123,95.635,95.58,15.695]
[1643559447015,24.6606,95.651,95.58,15.695]
[1643559447016,1.44721123,95.643,95.582,6.0]
[1643559447316,24.6606,95.651,95.583,0.25]
[1643559447515,1.44721123,95.653,95.583,24.4161]
[1643559447714,1.44721123,95.659,95.583,24.4161]
[1643559447913,1.44721123,95.66,95.593,6.0]
[1643559448115,1.44721123,95.661,95.593,6.0]
[1643559448315,1.44721123,95.661,95.594,24.4161]
[1643559448516,1.44721123,95.661,95.6,15.692]
[1643559449115,32.99328224,95.664,95.6,15.692]
[1643559449516,0.25,95.663,95.6,15.692]
[1643559449718,1.44721123,95.666,95.6,15.692]
[1643559449922,1.44721123,95.674,95.62,15.689]
[1643559450151,1.44721123,95.681,95.621,22.5107]
[1643559450322,1.44721123,95.683,95.622,0.25]
[1643559450919,42.12379247,95.682,95.622,0.25]
[1643559451520,42.12379247,95.682,95.63,15.687]
[1643559451921,42.12379247,95.682,95.631,0.25]
[1643559453322,0.25,95.681,95.631,0.25]
[1643559453722,0.25,95.681,95.621,22.5107]
[1643559454523,42.12379247,95.682,95.621,22.5107]
[1643559455126,42.12379247,95.682,95.622,0.25]
[1643559455923,0.25,95.681,95.63,15.687]
[1643559456326,0.25,95.681,95.631,0.25]
[1643559457327,0.25,95.681,95.622,0.25]
[1643559458127,0.25,95.681,95.63,15.686]
[1643559458329,0.25,95.681,95.631,0.25]
[1643559459528,0.25,95.681,95.622,0.25]
[1643559460332,0.25,95.681,95.63,15.686]
[1643559460729,0.25,95.681,95.631,0.25]
[1643559460931,0.25,95.681,95.621,22.5107]
[1643559461130,0.25,95.681,95.622,0.25]
[1643559461331,0.25,95.681,95.63,15.686]
[1643559461730,0.25,95.681,95.631,0.25]
[1643559462630,0.25,95.681,95.63,15.686]
[1643559463229,0.25,95.681,95.621,22.5107]
[1643559463430,0.25,95.681,95.622,0.25]
[1643559465157,0.25,95.681,95.63,15.687]
[1643559465335,0.25,95.681,95.631,0.25]
[1643559466233,0.25,95.681,95.621,22.5107]
[1643559466433,0.25,95.681,95.631,0.25]
[1643559466837,0.25,95.681,95.621,22.5107]
[1643559467940,0.25,95.681,95.62,15.689]
[1643559468437,0.25,95.681,95.611,24.5157]
[1643559468637,129.8263,95.681,95.611,24.5157]
[1643559469939,131.27351123,95.681,95.611,24.5157]
[1643559470441,1.44721123,95.68,95.612,22.7046]
[1643559470638,131.27351123,95.681,95.612,22.7046]
[1643559470840,1.44721123,95.68,95.612,22.7046]
[1643559471041,129.5763,95.681,95.612,22.7046]
[1643559471042,1.44721123,95.679,95.612,22.7046]
[1643559472041,1.44721123,95.677,95.612,22.7046]
[1643559472242,15.691,95.66,95.612,22.7046]
[1643559472443,37.14568043,95.659,95.612,22.7046]
[1643559473266,37.14568043,95.659,95.613,0.25]
[1643559474272,0.25,95.658,95.613,0.25]
[1643559474468,37.14568043,95.659,95.622,6.0]
[1643559474868,37.14568043,95.659,95.623,0.25]
[1643559475068,37.14568043,95.659,95.612,22.7046]
[1643559475270,37.14568043,95.659,95.613,0.25]
[1643559475768,0.25,95.658,95.62,15.688]
[1643559476573,0.25,95.658,95.63,6.0]
[1643559477173,0.25,95.658,95.63,21.687]
[1643559477371,1.44721123,95.674,95.631,23.6812]
[1643559477576,1.44721123,95.676,95.641,6.0]
[1643559477774,1.44721123,95.677,95.631,23.6812]
[1643559477972,0.25,95.675,95.631,23.6812]
[1643559478175,37.83717901,95.676,95.631,23.6812]
[1643559478473,0.25,95.675,95.631,23.6812]
[1643559479073,0.25,95.675,95.613,0.25]
[1643559479273,1.69721123,95.675,95.621,6.0]
[1643559479473,0.25,95.675,95.62,15.688]
[1643559480074,1.44721123,95.673,95.62,15.688]
[1643559480274,0.25,95.675,95.62,15.688]
[1643559480776,0.25,95.675,95.63,21.687]
[1643559480976,36.38996778,95.676,95.622,6.0]
[1643559481177,36.38996778,95.676,95.613,0.25]
[1643559481979,36.38996778,95.676,95.62,15.688]
[1643559482377,0.25,95.675,95.62,15.688]
[1643559485778,0.25,95.675,95.621,0.25]
[1643559487180,0.25,95.675,95.63,6.0]
[1643559487378,0.25,95.675,95.631,22.8491]
[1643559489586,34.13996778,95.676,95.631,22.8491]
[1643559499818,15.688,95.69,95.632,0.25]
[1643559500018,23.8014,95.699,95.632,0.25]
[1643559500218,23.8014,95.699,95.641,6.0]
[1643559500417,23.8014,95.699,95.642,24.8265]
[1643559501218,23.8014,95.699,95.65,15.684]
[1643559502019,23.8014,95.699,95.651,0.25]
[1643559502220,23.8014,95.699,95.65,15.684]
[1643559503020,23.8014,95.699,95.642,24.5765]
[1643559503220,23.8014,95.699,95.643,0.25]
[1643559503620,23.8014,95.699,95.642,24.5765]
[1643559505124,56.35329174,95.7,95.643,0.25]
[1643559505524,56.35329174,95.7,95.652,6.0]
[1643559505924,56.35329174,95.7,95.653,0.25]
[1643559507525,40.66829174,95.7,95.653,24.3851]
[1643559508726,15.684,95.71,95.653,24.3851]
[1643559508925,15.684,95.71,95.663,6.0]
[1643559509125,15.684,95.71,95.664,24.9854]
[1643559510227,23.0501,95.719,95.664,24.9854]
[1643559510430,23.0501,95.719,95.674,6.0]
[1643559510629,23.0501,95.719,95.675,23.825]
[1643559511229,42.8029659,95.718,95.675,23.825]
[1643559512528,42.8029659,95.718,95.66,15.682]
[1643559512727,42.8029659,95.718,95.661,22.5823]
[1643559513529,2.95669142,95.717,95.661,22.5823]
[1643559514127,42.8029659,95.718,95.661,22.5823]
[1643559514532,42.8029659,95.718,95.67,15.681]
[1643559514729,42.8029659,95.718,95.671,6.0]
[1643559514929,42.8029659,95.718,95.672,24.9001]
[1643559517731,42.8029659,95.718,95.651,24.5776]
[1643559517934,104.9,95.717,95.652,23.9228]
[1643559518132,107.85669142,95.717,95.62,52.278]
[1643559518335,104.9,95.709,95.621,23.9228]
[1643559518734,2.95669142,95.708,95.621,23.9228]
[1643559518941,2.90497353,95.707,95.621,23.9228]
[1643559519134,26.56587353,95.707,95.621,23.9228]
[1643559519334,107.85669142,95.706,95.621,23.9228]
[1643559519536,110.76166495,95.706,95.621,23.9228]
[1643559519736,5.86166495,95.705,95.621,23.9228]
[1643559519935,34.95124718,95.703,95.621,23.9228]
[1643559520136,15.69,95.7,95.621,23.9228]
[1643559520537,104.9,95.699,95.621,23.9228]
[1643559520837,107.85669142,95.699,95.61,15.69]
[1643559521039,21.01779307,95.698,95.554,2.88077678]
[1643559521240,15.697,95.67,95.555,47.8475]
[1643559521444,15.07,95.66,95.555,47.8475]
[1643559521642,15.07,95.66,95.543,15.7786]
[1643559522040,2.95669142,95.659,95.543,15.7786]
[1643559522243,21.01779307,95.659,95.543,15.7786]
[1643559522639,2.95669142,95.658,95.553,6.0]
[1643559522841,38.37807392,95.628,95.543,15.7786]
[1643559523040,104.9,95.627,95.543,15.7786]
[1643559523242,107.85669142,95.627,95.543,15.7786]
[1643559523444,107.85669142,95.627,95.54,15.701]
[1643559523841,2.95669142,95.626,95.54,15.701]
[1643559524043,15.702,95.61,95.54,15.701]
[1643559524242,39.83109228,95.609,95.54,15.701]
[1643559525443,39.33109228,95.609,95.54,15.701]
[1643559525643,15.701,95.6,95.53,15.703]
[1643559525845,15.701,95.6,95.531,0.25]
[1643559528744,15.701,95.6,95.53,15.703]
[1643559530152,15.701,95.6,95.54,6.0]
[1643559531249,15.701,95.6,95.54,21.702]
[1643559531448,15.701,95.6,95.54,15.702]
[1643559531648,15.701,95.6,95.55,6.0]
[1643559532848,15.701,95.6,95.54,15.702]
[1643559533048,15.701,95.6,95.53,15.703]
[1643559533949,15.701,95.6,95.531,0.25]
[1643559534956,15.701,95.6,95.53,15.703]
[1643559536153,15.701,95.6,95.54,15.702]
[1643559536952,104.9,95.599,95.521,47.8475]
[1643559537152,15.703,95.59,95.53,15.703]
[1643559537353,43.52830474,95.589,95.53,15.703]
[1643559538353,15.703,95.58,95.531,0.25]
[1643559540381,15.703,95.58,95.53,15.703]
[1643559540583,15.703,95.58,95.54,15.702]
[1643559541385,15.701,95.59,95.54,15.702]
[1643559544390,15.7,95.6,95.55,15.7]
[1643559545389,15.7,95.6,95.54,15.701]
[1643559546597,15.7,95.6,95.541,0.25]
[1643559547796,15.7,95.6,95.55,15.699]
[1643559548192,15.7,95.6,95.551,0.25]
[1643559550196,15.7,95.6,95.56,15.699]
[1643559550399,15.7,95.6,95.561,0.25]
[1643559550598,15.698,95.61,95.56,15.699]
[1643559550798,15.698,95.61,95.561,0.25]
[1643559550998,23.8479,95.656,95.561,0.25]
[1643559551199,2.89678073,95.661,95.57,15.697]
[1643559551398,15.07,95.68,95.57,15.697]
[1643559551399,2.89678073,95.673,95.571,49.9267]
[1643559551599,18.06110165,95.683,95.571,49.9267]
[1643559551600,15.693,95.64,95.571,49.9267]
[1643559551898,44.83151053,95.639,95.571,49.9267]
[1643559553002,15.695,95.63,95.58,15.695]
[1643559553401,15.695,95.63,95.581,0.25]
[1643559555204,15.695,95.63,95.58,15.695]
[1643559559507,15.695,95.63,95.571,49.6767]
[1643559559710,15.695,95.63,95.572,0.25]
[1643559561713,15.695,95.63,95.58,15.696]
[1643559561912,15.695,95.63,95.581,6.0]
[1643559562112,15.695,95.63,95.58,15.696]
[1643559565419,15.695,95.63,95.572,0.25]
[1643559566435,15.695,95.63,95.58,15.696]
[1643559570944,15.695,95.63,95.572,0.25]
[1643559571738,15.695,95.63,95.571,49.6767]
[1643559575844,15.698,95.62,95.571,49.6767]
[1643559576047,33.75649257,95.619,95.571,49.6767]
[1643559576647,104.9,95.618,95.522,79.5051]
[1643559576848,104.9,95.618,95.551,0.25]